[Event "Titled Tuesday Blitz April 25 Early 2023"]
[White "Toropov, Pavel"]
[Black "Staudenhocker43"]
[WhiteFideId "24129178"]
[WhiteElo "2182"]
[BlackElo "2474"]
[Result "0-1"]
[Round "08"]
[TimeControl "180+2"]
[Date "2023.04.25"]
[WhiteClock "0:00:03"]
[BlackClock "0:00:11"]

1. e4 {[%clk 0:03:00]}  e5 {[%clk 0:02:59]} 2. d4 {[%clk 0:03:00]}  exd4 {[%clk 0:02:58]} 3. Nf3 {[%clk 0:03:01]}  Bb4+ {[%clk 0:02:55]} 4. c3 {[%clk 0:02:56]}  dxc3 {[%clk 0:02:55]} 5. bxc3 {[%clk 0:02:56]}  Bc5 {[%clk 0:02:47]} 6. Bc4 {[%clk 0:02:56]}  d6 {[%clk 0:02:44]} 7. Ng5 {[%clk 0:02:26]}  Nh6 {[%clk 0:02:43]} 8. Qh5 {[%clk 0:02:24]}  Qe7 {[%clk 0:02:37]} 9. O-O {[%clk 0:02:21]}  Nc6 {[%clk 0:02:34]} 10. Be3 {[%clk 0:02:13]}  Ne5 {[%clk 0:02:24]} 11. Be2 {[%clk 0:01:41]}  Bxe3 {[%clk 0:02:15]} 12. fxe3 {[%clk 0:01:40]}  Be6 {[%clk 0:02:16]} 13. Nd2 {[%clk 0:01:37]}  O-O-O {[%clk 0:02:14]} 14. Rab1 {[%clk 0:01:36]}  Kb8 {[%clk 0:02:03]} 15. a4 {[%clk 0:01:35]}  Bc8 {[%clk 0:02:02]} 16. a5 {[%clk 0:01:35]}  f6 {[%clk 0:01:42]} 17. Ngf3 {[%clk 0:01:34]}  Nxf3+ {[%clk 0:01:42]} 18. Bxf3 {[%clk 0:01:28]}  Qe5 {[%clk 0:01:41]} 19. Qh4 {[%clk 0:01:25]}  Qxc3 {[%clk 0:01:39]} 20. Qf2 {[%clk 0:01:19]}  Qxa5 {[%clk 0:01:36]} 21. Nc4 {[%clk 0:01:18]}  Qc5 {[%clk 0:01:33]} 22. Rfc1 {[%clk 0:01:17]}  Rhe8 {[%clk 0:01:29]} 23. e5 {[%clk 0:01:03]}  d5 {[%clk 0:01:10]} 24. Nd6 {[%clk 0:01:01]}  cxd6 {[%clk 0:01:11]} 25. Rxc5 {[%clk 0:01:00]}  dxc5 {[%clk 0:01:12]} 26. exf6 {[%clk 0:01:00]}  gxf6 {[%clk 0:01:12]} 27. Qg3+ {[%clk 0:00:59]}  Ka8 {[%clk 0:01:11]} 28. Qc7 {[%clk 0:00:56]}  Nf5 {[%clk 0:01:05]} 29. Qxc5 {[%clk 0:00:54]}  Nxe3 {[%clk 0:01:04]} 30. h4 {[%clk 0:00:50]}  Rd7 {[%clk 0:00:54]} 31. Rc1 {[%clk 0:00:44]}  Kb8 {[%clk 0:00:48]} 32. Ra1 {[%clk 0:00:36]}  b6 {[%clk 0:00:45]} 33. Qc6 {[%clk 0:00:29]}  Red8 {[%clk 0:00:44]} 34. Qxf6 {[%clk 0:00:28]}  d4 {[%clk 0:00:34]} 35. Qe5+ {[%clk 0:00:18]}  Rd6 {[%clk 0:00:34]} 36. Be4 {[%clk 0:00:18]}  Bb7 {[%clk 0:00:33]} 37. Bxb7 {[%clk 0:00:12]}  Kxb7 {[%clk 0:00:34]} 38. Qe4+ {[%clk 0:00:12]}  Rd5 {[%clk 0:00:34]} 39. Ra4 {[%clk 0:00:10]}  Kb8 {[%clk 0:00:30]} 40. Qf4+ {[%clk 0:00:08]}  Kb7 {[%clk 0:00:29]} 41. Qe4 {[%clk 0:00:08]}  Kb8 {[%clk 0:00:28]} 42. Qf4+ {[%clk 0:00:08]}  Kb7 {[%clk 0:00:28]} 43. Ra2 {[%clk 0:00:06]}  R8d7 {[%clk 0:00:18]} 44. Rd2 {[%clk 0:00:06]}  Nc4 {[%clk 0:00:17]} 45. Rd3 {[%clk 0:00:06]}  Ne5 {[%clk 0:00:16]} 46. Rd1 {[%clk 0:00:06]}  d3 {[%clk 0:00:16]} 47. Qe4 {[%clk 0:00:06]}  Kb8 {[%clk 0:00:14]} 48. Rd2 {[%clk 0:00:07]}  b5 {[%clk 0:00:13]} 49. Qb4 {[%clk 0:00:03]}  Nc4 {[%clk 0:00:13]} 50. Rd1 {[%clk 0:00:04]}  d2 {[%clk 0:00:13]} 51. Qc3 {[%clk 0:00:03]}  a6 {[%clk 0:00:13]} 52. Qf3 {[%clk 0:00:03]}  Ka7 {[%clk 0:00:12]} 53. Qf2+ {[%clk 0:00:03]}  Kb7 {[%clk 0:00:13]} 54. Qf3 {[%clk 0:00:03]}  Kb6 {[%clk 0:00:13]} 55. Qf2+ {[%clk 0:00:03]}  Kc6 {[%clk 0:00:13]} 56. Qf3 {[%clk 0:00:04]}  Kc5 {[%clk 0:00:13]} 57. Qf2+ {[%clk 0:00:04]}  Kb4 {[%clk 0:00:13]} 58. Qf3 {[%clk 0:00:04]}  Nb2 {[%clk 0:00:12]} 59. Qf4+ {[%clk 0:00:02]}  Rd4 {[%clk 0:00:12]} 60. Qf8+ {[%clk 0:00:01]}  Kb3 {[%clk 0:00:12]} 61. Rxd2 {[%clk 0:00:01]}  Rxd2 {[%clk 0:00:12]} 62. Qg8+ {[%clk 0:00:02]}  Nc4 {[%clk 0:00:12]} 63. Qa8 {[%clk 0:00:01]}  a5 {[%clk 0:00:11]} 64. Kh2 {[%clk 0:00:01]}  b4 {[%clk 0:00:11]} 65. Qb8 {[%clk 0:00:02]}  a4 {[%clk 0:00:11]} 66. Qg3+ {[%clk 0:00:01]}  R7d3 {[%clk 0:00:12]} 67. Qg7 {[%clk 0:00:01]}  Ne3 {[%clk 0:00:12]} 68. Qxh7 {[%clk 0:00:02]}  Rxg2+ {[%clk 0:00:12]} 69. Kh3 {[%clk 0:00:03]}  Rgd2 {[%clk 0:00:11]} 70. Kg3 {[%clk 0:00:02]}  Nc4+ {[%clk 0:00:11]} 71. Kf4 {[%clk 0:00:03]}  a3 {[%clk 0:00:11]} 72. Qg7 {[%clk 0:00:02]}  a2 {[%clk 0:00:11]} 73. h5 {[%clk 0:00:03]}  Rd1 {[%clk 0:00:11]} 0-1


[Site "https://www.chess.com"]

[Event "Titled Tuesday Blitz April 25 Early 2023"]
[White "KorolDimitriy75"]
[Black "Postnikov, Daniil"]
[BlackFideId "4166329"]
[WhiteElo "2436"]
[BlackElo "2261"]
[Result "1/2-1/2"]
[Round "08"]
[TimeControl "180+2"]
[Date "2023.04.25"]
[WhiteClock "0:00:05"]
[BlackClock "0:00:07"]

1. d4 {[%clk 0:02:56]}  f5 {[%clk 0:02:59]} 2. c4 {[%clk 0:02:56]}  Nf6 {[%clk 0:02:57]} 3. Nc3 {[%clk 0:02:55]}  g6 {[%clk 0:02:57]} 4. g3 {[%clk 0:02:56]}  Bg7 {[%clk 0:02:56]} 5. Bg2 {[%clk 0:02:55]}  O-O {[%clk 0:02:56]} 6. Nf3 {[%clk 0:02:56]}  d6 {[%clk 0:02:56]} 7. O-O {[%clk 0:02:56]}  Qe8 {[%clk 0:02:55]} 8. d5 {[%clk 0:02:56]}  Na6 {[%clk 0:02:53]} 9. Nd4 {[%clk 0:02:55]}  Nc5 {[%clk 0:02:50]} 10. Rb1 {[%clk 0:02:55]}  e5 {[%clk 0:02:48]} 11. dxe6 {[%clk 0:02:54]}  c6 {[%clk 0:02:37]} 12. b3 {[%clk 0:02:49]}  Nxe6 {[%clk 0:02:36]} 13. Nxe6 {[%clk 0:02:44]}  Qxe6 {[%clk 0:02:34]} 14. Ba3 {[%clk 0:02:35]}  Rd8 {[%clk 0:02:33]} 15. Qc2 {[%clk 0:02:27]}  f4 {[%clk 0:02:14]} 16. Rfd1 {[%clk 0:01:59]}  Qe5 {[%clk 0:02:02]} 17. Rbc1 {[%clk 0:01:56]}  Bf5 {[%clk 0:01:53]} 18. Qd2 {[%clk 0:01:55]}  fxg3 {[%clk 0:01:37]} 19. hxg3 {[%clk 0:01:56]}  Ng4 {[%clk 0:01:28]} 20. Bxd6 {[%clk 0:01:32]}  Qf6 {[%clk 0:01:28]} 21. e4 {[%clk 0:01:31]}  Be6 {[%clk 0:01:19]} 22. c5 {[%clk 0:01:25]}  g5 {[%clk 0:01:16]} 23. Qe2 {[%clk 0:00:57]}  Qh6 {[%clk 0:01:11]} 24. e5 {[%clk 0:00:48]}  Qh2+ {[%clk 0:00:57]} 25. Kf1 {[%clk 0:00:48]}  Rf8 {[%clk 0:00:57]} 26. Ne4 {[%clk 0:00:32]}  Nxf2 {[%clk 0:00:41]} 27. Nxf2 {[%clk 0:00:30]}  Bh3 {[%clk 0:00:41]} 28. Qe4 {[%clk 0:00:17]}  Rf5 {[%clk 0:00:29]} 29. Rc2 {[%clk 0:00:12]}  Qh1+ {[%clk 0:00:23]} 30. Ke2 {[%clk 0:00:13]}  Qxg2 {[%clk 0:00:23]} 31. Qxg2 {[%clk 0:00:13]}  Bxg2 {[%clk 0:00:24]} 32. Ke3 {[%clk 0:00:13]}  Re8 {[%clk 0:00:16]} 33. Nd3 {[%clk 0:00:11]}  Rf3+ {[%clk 0:00:13]} 34. Kd4 {[%clk 0:00:11]}  Rxg3 {[%clk 0:00:13]} 35. Re1 {[%clk 0:00:08]}  Bd5 {[%clk 0:00:10]} 36. Rce2 {[%clk 0:00:07]}  h6 {[%clk 0:00:10]} 37. Re3 {[%clk 0:00:07]}  Rxe3 {[%clk 0:00:09]} 38. Rxe3 {[%clk 0:00:08]}  h5 {[%clk 0:00:09]} 39. Nb4 {[%clk 0:00:06]}  Be6 {[%clk 0:00:08]} 40. Nd3 {[%clk 0:00:02]}  g4 {[%clk 0:00:09]} 41. Nf4 {[%clk 0:00:02]}  Bh6 {[%clk 0:00:09]} 42. Re4 {[%clk 0:00:01]}  Bxf4 {[%clk 0:00:10]} 43. Rxf4 {[%clk 0:00:01]}  Kg7 {[%clk 0:00:10]} 44. Ke4 {[%clk 0:00:02]}  h4 {[%clk 0:00:09]} 45. Rf6 {[%clk 0:00:02]}  g3 {[%clk 0:00:08]} 46. Kf4 {[%clk 0:00:03]}  Bd5 {[%clk 0:00:08]} 47. Kg5 {[%clk 0:00:03]}  g2 {[%clk 0:00:07]} 48. Rg6+ {[%clk 0:00:03]}  Kf7 {[%clk 0:00:08]} 49. Rf6+ {[%clk 0:00:04]}  Kg7 {[%clk 0:00:08]} 50. Rg6+ {[%clk 0:00:04]}  Kh7 {[%clk 0:00:08]} 51. Rh6+ {[%clk 0:00:04]}  Kg7 {[%clk 0:00:07]} 52. Rg6+ {[%clk 0:00:05]} 1/2-1/2


[Site "https://www.chess.com"]

[Event "Titled Tuesday Blitz April 25 Early 2023"]
[White "Kuzmin, Roman"]
[Black "Prudnykova, Olga"]
[WhiteFideId "44134932"]
[BlackFideId "14121093"]
[WhiteElo "2192"]
[BlackElo "2113"]
[Result "1-0"]
[Round "08"]
[TimeControl "180+2"]
[Date "2023.04.25"]
[WhiteClock "0:00:19"]
[BlackClock "0:00:30"]

1. e4 {[%clk 0:03:00]}  c5 {[%clk 0:02:59]} 2. Nf3 {[%clk 0:02:59]}  Nf6 {[%clk 0:02:59]} 3. e5 {[%clk 0:02:58]}  Nd5 {[%clk 0:02:59]} 4. Nc3 {[%clk 0:02:59]}  e6 {[%clk 0:02:59]} 5. Nxd5 {[%clk 0:02:58]}  exd5 {[%clk 0:03:00]} 6. d4 {[%clk 0:02:59]}  Nc6 {[%clk 0:03:00]} 7. dxc5 {[%clk 0:02:58]}  Bxc5 {[%clk 0:03:01]} 8. Qxd5 {[%clk 0:02:59]}  Qb6 {[%clk 0:03:00]} 9. Bc4 {[%clk 0:02:59]}  Bxf2+ {[%clk 0:03:00]} 10. Ke2 {[%clk 0:02:58]}  O-O {[%clk 0:03:00]} 11. Rf1 {[%clk 0:02:58]}  Bc5 {[%clk 0:03:01]} 12. Ng5 {[%clk 0:02:57]}  Nxe5 {[%clk 0:03:01]} 13. Nxf7 {[%clk 0:01:30]}  Nxf7 {[%clk 0:02:59]} 14. Rxf7 {[%clk 0:01:31]}  Qe6+ {[%clk 0:02:58]} 15. Qxe6 {[%clk 0:01:31]}  dxe6 {[%clk 0:02:59]} 16. Rxf8+ {[%clk 0:01:32]}  Kxf8 {[%clk 0:02:40]} 17. Bg5 {[%clk 0:01:19]}  Bd7 {[%clk 0:02:12]} 18. Rf1+ {[%clk 0:01:19]}  Ke8 {[%clk 0:02:12]} 19. Bd3 {[%clk 0:01:18]}  g6 {[%clk 0:02:11]} 20. c3 {[%clk 0:00:57]}  Be7 {[%clk 0:02:09]} 21. Be3 {[%clk 0:00:49]}  b6 {[%clk 0:02:04]} 22. Be4 {[%clk 0:00:48]}  Rd8 {[%clk 0:02:03]} 23. b3 {[%clk 0:00:39]}  Bd6 {[%clk 0:01:43]} 24. g3 {[%clk 0:00:37]}  Bf8 {[%clk 0:01:40]} 25. h4 {[%clk 0:00:32]}  Bd6 {[%clk 0:01:35]} 26. h5 {[%clk 0:00:32]}  gxh5 {[%clk 0:00:48]} 27. Bxh7 {[%clk 0:00:32]}  Rc8 {[%clk 0:00:48]} 28. Bg5 {[%clk 0:00:20]}  Be7 {[%clk 0:00:38]} 29. Bg6+ {[%clk 0:00:20]}  Kd8 {[%clk 0:00:34]} 30. Rf8+ {[%clk 0:00:21]}  Kc7 {[%clk 0:00:30]} 31. Rxc8+ {[%clk 0:00:19]} 1-0


[Site "https://www.chess.com"]

[Event "Titled Tuesday Blitz April 25 Early 2023"]
[White "Goldin, Roman"]
[Black "Lorenzo De La Riva, Lazaro"]
[WhiteFideId "2803860"]
[BlackFideId "2268809"]
[WhiteElo "2312"]
[BlackElo "2294"]
[Result "1-0"]
[Round "08"]
[TimeControl "180+2"]
[Date "2023.04.25"]
[WhiteClock "0:00:04"]
[BlackClock "0:00:24"]

1. e4 {[%clk 0:03:00]}  Nf6 {[%clk 0:02:59]} 2. e5 {[%clk 0:02:58]}  Nd5 {[%clk 0:02:59]} 3. c4 {[%clk 0:02:58]}  Nb6 {[%clk 0:02:59]} 4. c5 {[%clk 0:02:59]}  Nd5 {[%clk 0:02:58]} 5. Bc4 {[%clk 0:03:00]}  e6 {[%clk 0:02:58]} 6. d4 {[%clk 0:03:00]}  d6 {[%clk 0:02:57]} 7. cxd6 {[%clk 0:03:01]}  cxd6 {[%clk 0:02:57]} 8. Nf3 {[%clk 0:03:01]}  Nc6 {[%clk 0:02:56]} 9. Qe2 {[%clk 0:03:02]}  Be7 {[%clk 0:02:49]} 10. O-O {[%clk 0:03:00]}  O-O {[%clk 0:02:49]} 11. a3 {[%clk 0:02:58]}  Bd7 {[%clk 0:02:47]} 12. Re1 {[%clk 0:02:56]}  Qb6 {[%clk 0:02:44]} 13. Nc3 {[%clk 0:02:31]}  Nxc3 {[%clk 0:02:43]} 14. bxc3 {[%clk 0:02:29]}  dxe5 {[%clk 0:02:44]} 15. Nxe5 {[%clk 0:02:29]}  Nxe5 {[%clk 0:02:43]} 16. Qxe5 {[%clk 0:02:28]}  Bf6 {[%clk 0:02:37]} 17. Qe3 {[%clk 0:02:24]}  Rac8 {[%clk 0:02:34]} 18. Bd3 {[%clk 0:02:23]}  g6 {[%clk 0:02:32]} 19. Bd2 {[%clk 0:02:22]}  Qd6 {[%clk 0:01:54]} 20. a4 {[%clk 0:02:17]}  Bc6 {[%clk 0:01:35]} 21. a5 {[%clk 0:02:06]}  Bd5 {[%clk 0:01:31]} 22. Rab1 {[%clk 0:01:54]}  Rc7 {[%clk 0:01:28]} 23. c4 {[%clk 0:01:18]}  Bxc4 {[%clk 0:01:24]} 24. Bb4 {[%clk 0:01:15]}  Qd8 {[%clk 0:00:58]} 25. Bxf8 {[%clk 0:01:06]}  Bxd4 {[%clk 0:00:55]} 26. Qg3 {[%clk 0:00:29]}  Bxd3 {[%clk 0:00:51]} 27. Bd6 {[%clk 0:00:21]}  Rd7 {[%clk 0:00:49]} 28. Qxd3 {[%clk 0:00:20]}  Rxd6 {[%clk 0:00:49]} 29. Qf3 {[%clk 0:00:16]}  b6 {[%clk 0:00:49]} 30. a6 {[%clk 0:00:16]}  Kg7 {[%clk 0:00:48]} 31. g3 {[%clk 0:00:16]}  e5 {[%clk 0:00:47]} 32. Rbc1 {[%clk 0:00:13]}  Rf6 {[%clk 0:00:47]} 33. Qe4 {[%clk 0:00:07]}  Bxf2+ {[%clk 0:00:45]} 34. Kh1 {[%clk 0:00:07]}  Bxe1 {[%clk 0:00:45]} 35. Rxe1 {[%clk 0:00:07]}  Re6 {[%clk 0:00:40]} 36. Rc1 {[%clk 0:00:05]}  Re7 {[%clk 0:00:36]} 37. Rc6 {[%clk 0:00:04]}  Qd4 {[%clk 0:00:36]} 38. Qf3 {[%clk 0:00:04]}  e4 {[%clk 0:00:35]} 39. Qf4 {[%clk 0:00:03]}  e3 {[%clk 0:00:34]} 40. Qxd4+ {[%clk 0:00:02]}  f6 {[%clk 0:00:31]} 41. Qf4 {[%clk 0:00:02]}  Rf7 {[%clk 0:00:22]} 42. Re6 {[%clk 0:00:02]}  g5 {[%clk 0:00:23]} 43. Qxe3 {[%clk 0:00:02]}  h6 {[%clk 0:00:24]} 44. Qe4 {[%clk 0:00:02]}  h5 {[%clk 0:00:24]} 45. Qf5 {[%clk 0:00:03]}  Rf8 {[%clk 0:00:22]} 46. Kg2 {[%clk 0:00:03]}  Rf7 {[%clk 0:00:23]} 47. Rd6 {[%clk 0:00:03]}  Re7 {[%clk 0:00:23]} 48. h4 {[%clk 0:00:03]}  Kf7 {[%clk 0:00:24]} 49. Kf3 {[%clk 0:00:04]}  g4+ {[%clk 0:00:24]} 50. Kf4 {[%clk 0:00:03]}  Ke8 {[%clk 0:00:24]} 51. Re6 {[%clk 0:00:03]}  Kf7 {[%clk 0:00:24]} 52. Rxe7+ {[%clk 0:00:04]}  Kxe7 {[%clk 0:00:24]} 53. Ke4 {[%clk 0:00:04]} 1-0


[Site "https://www.chess.com"]

[Event "Titled Tuesday Blitz April 25 Early 2023"]
[White "Kvaloy, Aksel Bu"]
[Black "Omariev, Maksim"]
[WhiteFideId "1528815"]
[BlackFideId "4193423"]
[WhiteElo "2208"]
[BlackElo "2419"]
[Result "1-0"]
[Round "08"]
[TimeControl "180+2"]
[Date "2023.04.25"]
[WhiteClock "0:00:57"]
[BlackClock "0:00:01"]

1. e4 {[%clk 0:03:00]}  c5 {[%clk 0:02:59]} 2. Nf3 {[%clk 0:02:58]}  d6 {[%clk 0:03:00]} 3. d4 {[%clk 0:02:58]}  cxd4 {[%clk 0:03:01]} 4. Nxd4 {[%clk 0:02:58]}  Nf6 {[%clk 0:03:02]} 5. Nc3 {[%clk 0:02:59]}  a6 {[%clk 0:03:02]} 6. Bg5 {[%clk 0:02:58]}  Nbd7 {[%clk 0:03:01]} 7. Bc4 {[%clk 0:02:57]}  Qb6 {[%clk 0:02:59]} 8. Bb3 {[%clk 0:02:58]}  e6 {[%clk 0:02:56]} 9. Bxf6 {[%clk 0:02:58]}  Nxf6 {[%clk 0:02:55]} 10. Qd2 {[%clk 0:02:58]}  Be7 {[%clk 0:02:51]} 11. O-O-O {[%clk 0:02:58]}  O-O {[%clk 0:02:40]} 12. f4 {[%clk 0:02:58]}  Nd7 {[%clk 0:02:33]} 13. g4 {[%clk 0:02:57]}  Nc5 {[%clk 0:02:32]} 14. Kb1 {[%clk 0:02:58]}  Bd7 {[%clk 0:02:15]} 15. g5 {[%clk 0:02:57]}  a5 {[%clk 0:02:16]} 16. a3 {[%clk 0:02:56]}  a4 {[%clk 0:02:12]} 17. Ba2 {[%clk 0:02:55]}  Rfe8 {[%clk 0:02:03]} 18. f5 {[%clk 0:02:54]}  Bf8 {[%clk 0:02:04]} 19. h4 {[%clk 0:02:48]}  Rac8 {[%clk 0:01:37]} 20. h5 {[%clk 0:02:46]}  e5 {[%clk 0:01:23]} 21. Nf3 {[%clk 0:02:40]}  Nb3 {[%clk 0:01:11]} 22. Qd5 {[%clk 0:02:08]}  Rc5 {[%clk 0:01:02]} 23. Bxb3 {[%clk 0:02:01]}  Rxd5 {[%clk 0:00:42]} 24. Bxd5 {[%clk 0:02:02]}  Bc6 {[%clk 0:00:41]} 25. g6 {[%clk 0:01:59]}  Bxd5 {[%clk 0:00:40]} 26. Nxd5 {[%clk 0:01:58]}  Qc6 {[%clk 0:00:34]} 27. f6 {[%clk 0:01:50]}  fxg6 {[%clk 0:00:29]} 28. hxg6 {[%clk 0:01:51]}  Rc8 {[%clk 0:00:06]} 29. c3 {[%clk 0:01:24]}  h6 {[%clk 0:00:01]} 30. f7+ {[%clk 0:01:05]}  Kh8 {[%clk 0:00:01]} 31. Ng5 {[%clk 0:01:02]}  Qc4 {[%clk 0:00:01]} 32. Rhe1 {[%clk 0:00:57]}  b5 {[%clk 0:00:01]} 33. Ne6 {[%clk 0:00:57]} 1-0


[Site "https://www.chess.com"]

[Event "Titled Tuesday Blitz April 25 Early 2023"]
[White "Berezin, Viktor"]
[Black "Gatterer, Florian"]
[WhiteFideId "14107872"]
[BlackFideId "811688"]
[WhiteElo "2310"]
[BlackElo "2221"]
[Result "1/2-1/2"]
[Round "08"]
[TimeControl "180+2"]
[Date "2023.04.25"]
[WhiteClock "0:00:51"]
[BlackClock "0:00:10"]

1. d4 {[%clk 0:02:55]}  Nf6 {[%clk 0:02:59]} 2. Nf3 {[%clk 0:02:53]}  g6 {[%clk 0:02:58]} 3. Bf4 {[%clk 0:02:53]}  d5 {[%clk 0:02:54]} 4. h3 {[%clk 0:02:53]}  Bg7 {[%clk 0:02:53]} 5. e3 {[%clk 0:02:54]}  O-O {[%clk 0:02:52]} 6. c4 {[%clk 0:02:54]}  dxc4 {[%clk 0:02:44]} 7. Bxc4 {[%clk 0:02:54]}  c5 {[%clk 0:02:44]} 8. O-O {[%clk 0:02:52]}  Nc6 {[%clk 0:02:39]} 9. dxc5 {[%clk 0:02:46]}  Qa5 {[%clk 0:02:34]} 10. Nc3 {[%clk 0:02:43]}  Qxc5 {[%clk 0:02:33]} 11. Qe2 {[%clk 0:02:38]}  Na5 {[%clk 0:02:24]} 12. Bd3 {[%clk 0:02:36]}  Bf5 {[%clk 0:02:20]} 13. Rac1 {[%clk 0:02:35]}  Bxd3 {[%clk 0:02:20]} 14. Qxd3 {[%clk 0:02:36]}  Rfd8 {[%clk 0:02:16]} 15. Qe2 {[%clk 0:02:36]}  Qc4 {[%clk 0:02:11]} 16. Qxc4 {[%clk 0:02:32]}  Nxc4 {[%clk 0:02:10]} 17. b3 {[%clk 0:02:31]}  Nd2 {[%clk 0:01:59]} 18. Rfd1 {[%clk 0:02:03]}  Nxf3+ {[%clk 0:01:54]} 19. gxf3 {[%clk 0:02:04]}  Rac8 {[%clk 0:01:49]} 20. Rxd8+ {[%clk 0:01:55]}  Rxd8 {[%clk 0:01:49]} 21. Nb5 {[%clk 0:01:55]}  a6 {[%clk 0:01:49]} 22. Nc7 {[%clk 0:01:43]}  Rc8 {[%clk 0:01:37]} 23. Rc4 {[%clk 0:01:36]}  Nh5 {[%clk 0:00:59]} 24. Bh2 {[%clk 0:01:33]}  e5 {[%clk 0:00:45]} 25. Kf1 {[%clk 0:01:18]}  f6 {[%clk 0:00:40]} 26. Ke2 {[%clk 0:01:18]}  Kf7 {[%clk 0:00:39]} 27. Nd5 {[%clk 0:01:11]}  Rxc4 {[%clk 0:00:37]} 28. bxc4 {[%clk 0:01:12]}  Bf8 {[%clk 0:00:30]} 29. Kd3 {[%clk 0:01:09]}  Ke6 {[%clk 0:00:22]} 30. f4 {[%clk 0:01:09]}  exf4 {[%clk 0:00:21]} 31. Nxf4+ {[%clk 0:01:04]}  Nxf4+ {[%clk 0:00:20]} 32. Bxf4 {[%clk 0:01:05]}  Bc5 {[%clk 0:00:20]} 33. a4 {[%clk 0:01:04]}  g5 {[%clk 0:00:20]} 34. Bg3 {[%clk 0:01:04]}  h5 {[%clk 0:00:20]} 35. f4 {[%clk 0:01:01]}  g4 {[%clk 0:00:17]} 36. hxg4 {[%clk 0:01:00]}  hxg4 {[%clk 0:00:17]} 37. e4 {[%clk 0:01:01]}  f5 {[%clk 0:00:17]} 38. e5 {[%clk 0:01:01]}  Bb6 {[%clk 0:00:13]} 39. Be1 {[%clk 0:00:59]}  Bc5 {[%clk 0:00:13]} 40. Ke2 {[%clk 0:00:58]}  Kd7 {[%clk 0:00:11]} 41. Kd3 {[%clk 0:00:59]}  Ke6 {[%clk 0:00:11]} 42. a5 {[%clk 0:00:58]}  Kd7 {[%clk 0:00:11]} 43. Bh4 {[%clk 0:00:56]}  Ke6 {[%clk 0:00:11]} 44. Be1 {[%clk 0:00:56]}  Kd7 {[%clk 0:00:10]} 45. Ke2 {[%clk 0:00:51]}  Ke6 {[%clk 0:00:10]} 46. Kd3 {[%clk 0:00:51]} 1/2-1/2


[Site "https://www.chess.com"]

[Event "Titled Tuesday Blitz April 25 Early 2023"]
[White "Moksh Amit Doshi"]
[Black "Topalov, Aleksandar"]
[WhiteFideId "25064967"]
[BlackFideId "925659"]
[WhiteElo "2297"]
[BlackElo "2151"]
[Result "0-1"]
[Round "08"]
[TimeControl "180+2"]
[Date "2023.04.25"]
[WhiteClock "0:02:15"]
[BlackClock "0:02:00"]

1. e4 {[%clk 0:02:48]}  e6 {[%clk 0:02:59]} 2. d4 {[%clk 0:02:48]}  d5 {[%clk 0:02:59]} 3. exd5 {[%clk 0:02:46]}  exd5 {[%clk 0:02:59]} 4. Nf3 {[%clk 0:02:47]}  Bd6 {[%clk 0:02:59]} 5. Nc3 {[%clk 0:02:46]}  Ne7 {[%clk 0:02:59]} 6. Nb5 {[%clk 0:02:45]}  c6 {[%clk 0:02:57]} 7. Nxd6+ {[%clk 0:02:45]}  Qxd6 {[%clk 0:02:57]} 8. Bd3 {[%clk 0:02:45]}  h6 {[%clk 0:02:56]} 9. O-O {[%clk 0:02:46]}  O-O {[%clk 0:02:56]} 10. Re1 {[%clk 0:02:46]}  Bf5 {[%clk 0:02:52]} 11. Bf1 {[%clk 0:02:39]}  Nd7 {[%clk 0:02:47]} 12. g3 {[%clk 0:02:39]}  Ng6 {[%clk 0:02:44]} 13. c3 {[%clk 0:02:38]}  Rfe8 {[%clk 0:02:43]} 14. Be3 {[%clk 0:02:31]}  Nf6 {[%clk 0:02:39]} 15. Qb3 {[%clk 0:02:30]}  b5 {[%clk 0:02:35]} 16. Bg2 {[%clk 0:02:26]}  Ne4 {[%clk 0:02:30]} 17. a4 {[%clk 0:02:25]}  a6 {[%clk 0:02:29]} 18. h4 {[%clk 0:02:21]}  Nxg3 {[%clk 0:02:01]} 19. fxg3 {[%clk 0:02:16]}  Qxg3 {[%clk 0:02:01]} 20. Bf2 {[%clk 0:02:16]}  Qg4 {[%clk 0:02:01]} 21. axb5 {[%clk 0:02:15]}  Nf4 {[%clk 0:02:00]} 0-1


[Site "https://www.chess.com"]

[Event "Titled Tuesday Blitz April 25 Early 2023"]
[White "Liu, Casper"]
[Black "Risteski, Emil"]
[WhiteFideId "1454153"]
[BlackFideId "15005267"]
[WhiteElo "2221"]
[BlackElo "2251"]
[Result "1-0"]
[Round "08"]
[TimeControl "180+2"]
[Date "2023.04.25"]
[WhiteClock "0:02:28"]
[BlackClock "0:02:19"]

1. e4 {[%clk 0:02:56]}  e5 {[%clk 0:02:57]} 2. Nf3 {[%clk 0:02:55]}  Nc6 {[%clk 0:02:55]} 3. Bc4 {[%clk 0:02:55]}  Nf6 {[%clk 0:02:52]} 4. d4 {[%clk 0:02:55]}  Nxe4 {[%clk 0:02:50]} 5. dxe5 {[%clk 0:02:54]}  Nc5 {[%clk 0:02:42]} 6. O-O {[%clk 0:02:50]}  Be7 {[%clk 0:02:41]} 7. Nc3 {[%clk 0:02:41]}  O-O {[%clk 0:02:40]} 8. Nd5 {[%clk 0:02:42]}  Ne6 {[%clk 0:02:36]} 9. Re1 {[%clk 0:02:36]}  d6 {[%clk 0:02:32]} 10. Nxe7+ {[%clk 0:02:35]}  Nxe7 {[%clk 0:02:31]} 11. exd6 {[%clk 0:02:36]}  cxd6 {[%clk 0:02:32]} 12. Ng5 {[%clk 0:02:32]}  d5 {[%clk 0:02:26]} 13. Bd3 {[%clk 0:02:32]}  Ng6 {[%clk 0:02:22]} 14. Qh5 {[%clk 0:02:30]}  Nxg5 {[%clk 0:02:20]} 15. Bxg5 {[%clk 0:02:30]}  Qd6 {[%clk 0:02:19]} 16. Be7 {[%clk 0:02:28]} 1-0


[Site "https://www.chess.com"]